fUSD/lending_fUSD_20250812
["ID","MTS","AMOUNT","RATE_DAILY","PERIOD"]
[378752381,1755003050635,-400.0,0.00041095,30]
[378752382,1755003050646,-400.0,0.00041095,30]
[378752383,1755003050655,-400.0,0.00041095,30]
[378752384,1755003050664,-705.13,0.00041095,30]
[378752385,1755003050674,-400.0,0.00041095,30]
[378752386,1755003050685,-400.0,0.00041095,30]
[378752387,1755003050694,-400.0,0.00041095,30]
[378752388,1755003050703,-400.0,0.00041095,30]
[378752389,1755003050713,-400.0,0.00041095,30]
[378752390,1755003050723,-400.0,0.00041095,30]
[378752391,1755003050732,-715.11,0.00041095,30]
[378752392,1755003050741,-400.0,0.00041095,30]
[378752393,1755003050752,-400.0,0.00041095,30]
[378752394,1755003050761,-400.0,0.00041095,30]
[378752395,1755003050770,-400.0,0.00041095,30]
[378752396,1755003050780,-469.65,0.00041095,30]
[378752397,1755003050790,-400.0,0.00041095,30]
[378752398,1755003050799,-400.0,0.00041095,30]
[378752399,1755003050809,-400.0,0.00041095,30]
[378752400,1755003050818,-400.0,0.00041095,30]
[378752401,1755003050827,-400.0,0.00041095,30]
[378752402,1755003050836,-400.0,0.00041095,30]
[378752403,1755003050846,-400.0,0.00041095,30]
[378752404,1755003050855,-400.0,0.00041095,30]
[378752405,1755003050863,-400.0,0.00041095,30]
[378752406,1755003050873,-400.0,0.00041095,30]
[378752407,1755003050882,-400.0,0.00041095,30]
[378752408,1755003050891,-502.01,0.00041095,30]
[378752409,1755003050901,-400.0,0.00041095,30]
[378752410,1755003050910,-400.0,0.00041095,30]
[378752411,1755003050920,-400.0,0.00041095,30]
[378752412,1755003050929,-400.0,0.00041095,30]
[378752413,1755003050939,-400.0,0.00041095,30]
[378752414,1755003050949,-400.0,0.00041095,30]
[378752415,1755003050958,-832.68,0.00041095,30]
[378752416,1755003050968,-400.0,0.00041095,30]
[378752417,1755003050977,-400.0,0.00041095,30]
[378752418,1755003050986,-400.0,0.00041095,30]
[378752419,1755003050996,-400.0,0.00041095,30]
[378752420,1755003051007,-400.0,0.00041095,30]
[378752421,1755003051017,-400.0,0.00041095,30]
[378752422,1755003051026,-400.0,0.00041095,30]
[378752423,1755003051036,-549.29,0.00041095,30]
[378752424,1755003051045,-400.0,0.00041095,30]
[378752425,1755003051055,-400.0,0.00041095,30]
[378752426,1755003051095,-400.0,0.00041095,30]
[378752427,1755003051105,-626.92,0.00041095,30]
[378752428,1755003051115,-400.0,0.00041095,30]
[378752429,1755003051124,-400.0,0.00041095,30]
[378752430,1755003051135,-403.3870903,0.00041095,30]
[378752431,1755003051144,-420.22,0.00041095,30]
[378752432,1755003051153,-435.17,0.00041095,30]
[378752433,1755003051163,-400.0,0.00041095,30]
[378752434,1755003051172,-400.0,0.00041095,30]
[378752435,1755003051181,-400.0,0.00041095,30]
[378752436,1755003051293,-400.0,0.00041095,30]
[378752437,1755003051315,-400.0,0.00041095,30]
[378752438,1755003051324,-400.0,0.00041095,30]
[378752439,1755003051334,-400.0,0.00041095,30]
[378752440,1755003051344,-400.0,0.00041095,30]
[378752441,1755003051353,-400.0,0.00041095,30]
[378752442,1755003051363,-400.0,0.00041095,30]
[378752443,1755003051372,-183.35,0.00041095,30]
[378752444,1755003051382,-151.43732762,0.00041095,30]
[378752445,1755003051392,-400.0,0.00041095,30]
[378752446,1755003051401,-400.0,0.00041095,30]
[378752447,1755003051410,-400.0,0.00041095,30]
[378752448,1755003051419,-400.0,0.00041095,30]
[378752449,1755003051428,-747.94,0.00041095,30]
[378752450,1755003051438,-400.0,0.00041095,30]
[378752451,1755003051447,-400.0,0.00041095,30]
[378752452,1755003051456,-400.0,0.00041095,30]
[378752453,1755003051466,-400.0,0.00041095,30]
[378752454,1755003051475,-400.0,0.00041095,30]
[378752455,1755003051484,-400.0,0.00041095,30]
[378752456,1755003051494,-400.0,0.00041095,30]
[378752457,1755003051507,-682.48,0.00041095,30]
[378752458,1755003051516,-400.0,0.00041095,30]
[378752459,1755003051525,-682.48,0.00041095,30]
[378752460,1755003051535,-183.6,0.00041095,30]
[378752461,1755003051544,-682.48,0.00041095,30]
[378752462,1755003051554,-682.48,0.00041095,30]
[378752463,1755003051563,-682.48,0.00041095,30]
[378752464,1755003051573,-400.0,0.00041095,30]
[378752465,1755003051584,-682.48,0.00041095,30]
[378752466,1755003051593,-682.48,0.00041095,30]
[378752467,1755003051606,-400.0,0.00041095,30]
[378752468,1755003051617,-682.48,0.00041095,30]
[378752469,1755003051626,-682.48,0.00041095,30]
[378752470,1755003051636,-400.0,0.00041095,30]
[378752471,1755003051647,-400.0,0.00041095,30]
[378752472,1755003051656,-682.48,0.00041095,30]
[378752473,1755003051665,-508.17,0.00041095,30]
[378752474,1755003051675,-400.0,0.00041095,30]
[378752475,1755003051686,-569.03,0.00041095,30]
[378752476,1755003051697,-493.89,0.00041095,30]
[378752477,1755003051706,-400.0,0.00041095,30]
[378752478,1755003051715,-400.0,0.00041095,30]
[378752479,1755003051724,-400.0,0.00041095,30]
[378752480,1755003051734,-400.0,0.00041095,30]
[378752481,1755003051743,-400.0,0.00041095,30]
[378752482,1755003051755,-401.20470439,0.00041095,2]
[378752483,1755003051764,-400.0,0.00041095,30]
[378752484,1755003051774,-400.0,0.00041095,30]
[378752485,1755003051783,-400.0,0.00041095,30]
[378752486,1755003051793,-400.0,0.00041095,30]
[378752487,1755003051802,-400.0,0.00041095,30]
[378752488,1755003051812,-400.0,0.00041095,30]
[378752489,1755003051821,-1304.68,0.00041095,30]
[378752490,1755003051830,-400.0,0.00041095,30]
[378752491,1755003051839,-400.0,0.00041095,30]
[378752492,1755003051848,-400.0,0.00041095,30]
[378752493,1755003051858,-400.0,0.00041095,30]
[378752494,1755003051867,-400.0,0.00041095,30]
[378752495,1755003051876,-446.59,0.00041095,30]
[378752496,1755003051886,-472.71,0.00041095,30]
[378752497,1755003051895,-214.70915986,0.00041095,30]
[378752498,1755003051904,-400.0,0.00041095,30]
[378752499,1755003051913,-400.0,0.00041095,30]
[378752500,1755003051923,-400.0,0.00041095,30]
[378752501,1755003051932,-485.21,0.00041095,30]
[378752502,1755003051941,-400.0,0.00041095,30]
[378752503,1755003051951,-400.0,0.00041095,30]
[378752504,1755003051960,-400.0,0.00041095,30]
[378752505,1755003051969,-400.0,0.00041095,30]
[378752506,1755003051978,-1427.73,0.00041095,30]
[378752507,1755003051987,-400.0,0.00041095,30]
[378752508,1755003051996,-400.0,0.00041095,30]
[378752509,1755003052008,-400.0,0.00041095,30]
[378752510,1755003052017,-400.0,0.00041095,30]
[378752511,1755003052026,-400.0,0.00041095,30]
[378752512,1755003052035,-400.0,0.00041095,30]
[378752513,1755003052044,-400.0,0.00041095,30]
[378752514,1755003052054,-400.0,0.00041095,30]
[378752515,1755003052066,-400.0,0.00041095,30]
[378752516,1755003052075,-400.0,0.00041095,30]
[378752517,1755003052085,-400.0,0.00041095,30]
[378752518,1755003052094,-400.0,0.00041095,30]
[378752519,1755003052104,-400.0,0.00041095,30]
[378752520,1755003052113,-400.0,0.00041095,30]
[378752521,1755003052122,-400.0,0.00041095,30]
[378752522,1755003052132,-668.75,0.00041095,30]
[378752523,1755003052141,-400.0,0.00041095,30]
[378752524,1755003052150,-400.0,0.00041095,30]
[378752525,1755003052160,-599.71,0.00041095,30]
[378752526,1755003052169,-1550.59,0.00041095,30]
[378752527,1755003052178,-400.0,0.00041095,30]
[378752528,1755003052188,-400.0,0.00041095,30]
[378752529,1755003052198,-400.0,0.00041095,30]
[378752530,1755003052207,-400.0,0.00041095,30]
[378752531,1755003052216,-400.0,0.00041095,30]
[378752532,1755003052226,-400.0,0.00041095,30]
[378752533,1755003052235,-400.0,0.00041095,30]
[378752534,1755003052244,-2263.04,0.00041095,30]
[378752535,1755003052255,-400.0,0.00041095,30]
[378752536,1755003052264,-801.81,0.00041095,30]
[378752537,1755003052274,-400.0,0.00041095,30]
[378752538,1755003052283,-175.06968712,0.00041095,30]
[378752539,1755003052292,-400.0,0.00041095,30]
[378752540,1755003052301,-517.14,0.00041095,30]
[378752541,1755003052311,-400.0,0.00041095,30]
[378752542,1755003052320,-1000.0,0.00041095,2]
[378752543,1755003052329,-416.76,0.00041095,30]
[378752544,1755003052347,-606.34,0.00041095,7]
[378752545,1755003052356,-400.0,0.00041095,30]
[378752546,1755003052365,-463.53,0.00041095,30]
[378752547,1755003052374,-400.0,0.00041095,30]
[378752548,1755003052384,-1058.21,0.00041095,30]
[378752549,1755003052393,-217.81515818,0.00041095,30]
[378752550,1755003052402,-400.0,0.00041095,30]
[378752551,1755003052411,-400.0,0.00041095,30]
[378752552,1755003052421,-400.0,0.00041095,30]
[378752553,1755003052430,-400.0,0.00041095,30]
[378752554,1755003052439,-400.0,0.00041095,30]
[378752555,1755003052448,-400.0,0.00041095,30]
[378752556,1755003052457,-407.77235795,0.00041095,30]
[378752557,1755003052467,-400.0,0.00041095,30]
[378752558,1755003052476,-400.0,0.00041095,30]
[378752559,1755003052485,-400.0,0.00041095,30]
[378752560,1755003052500,-500.0,0.00041095,30]
[378752561,1755003052510,-400.0,0.00041095,30]
[378752562,1755003052520,-400.0,0.00041095,30]
[378752563,1755003052530,-500.0,0.00041095,30]
[378752564,1755003052540,-400.0,0.00041095,30]
[378752565,1755003052549,-500.0,0.00041095,30]
[378752566,1755003052559,-500.0,0.00041095,30]
[378752567,1755003052569,-500.0,0.00041095,30]
[378752568,1755003052578,-400.0,0.00041095,30]
[378752569,1755003052588,-500.0,0.00041095,30]
[378752570,1755003052597,-500.0,0.00041095,30]
[378752571,1755003052608,-400.0,0.00041095,30]
[378752572,1755003052620,-400.0,0.00041095,30]
[378752573,1755003052629,-400.0,0.00041095,30]
[378752574,1755003052639,-400.0,0.00041095,30]
[378752575,1755003052648,-400.0,0.00041095,30]
[378752576,1755003052658,-324.88,0.00041095,30]
[378752577,1755003052668,-661.34,0.00041095,30]
[378752578,1755003052677,-400.0,0.00041095,30]
[378752579,1755003052689,-400.0,0.00041095,30]
[378752580,1755003052699,-454.5453769,0.00041095,30]
[378752581,1755003052708,-453.89,0.00041095,30]
[378752582,1755003052717,-3468.76,0.00041095,30]
[378752583,1755003052727,-400.0,0.00041095,30]
[378752584,1755003052736,-491.51,0.00041095,30]
[378752585,1755003052745,-400.0,0.00041095,30]
[378752586,1755003052757,-403.90636308,0.00041095,30]
[378752587,1755003052767,-747.81,0.00041095,30]
[378752588,1755003052776,-400.0,0.00041095,30]
[378752589,1755003052786,-413.27,0.00041095,30]
[378752590,1755003052796,-567.5,0.00041095,30]
[378752591,1755003052805,-689.53,0.00041095,30]
[378752592,1755003052814,-400.0,0.00041095,30]
[378752593,1755003052824,-400.0,0.00041095,30]
[378752594,1755003052833,-400.0,0.00041095,30]
[378752595,1755003052842,-400.0,0.00041095,30]
[378752596,1755003052852,-400.0,0.00041095,30]
[378752597,1755003052987,-414.54,0.00041095,30]
[378752598,1755003052997,-400.0,0.00041095,30]
[378752599,1755003053010,-455.41,0.00041095,30]
[378752600,1755003053020,-3359.66,0.00041095,30]
[378752601,1755003053029,-400.0,0.00041095,30]
[378752602,1755003053039,-449.21,0.00041095,30]
[378752603,1755003053048,-400.0,0.00041095,30]
[378752604,1755003053057,-704.22,0.00041095,30]
[378752605,1755003053066,-400.0,0.00041095,30]
[378752606,1755003053075,-400.0,0.00041095,30]
[378752607,1755003053084,-400.0,0.00041095,30]
[378752608,1755003053094,-400.0,0.00041095,30]
[378752609,1755003053103,-400.0,0.00041095,30]
[378752610,1755003053112,-400.0,0.00041095,30]
[378752611,1755003053121,-387.68570032,0.00041095,30]
[378752612,1755003053130,-400.0,0.00041095,30]
[378752613,1755003053139,-400.0,0.00041095,30]
[378752614,1755003053149,-400.0,0.00041095,30]
[378752615,1755003053158,-400.0,0.00041095,30]
[378752616,1755003053167,-400.0,0.00041095,30]
[378752617,1755003053176,-400.0,0.00041095,30]
[378752618,1755003053185,-400.0,0.00041095,30]
[378752619,1755003053194,-632.29,0.00041095,30]
[378752620,1755003053203,-400.0,0.00041095,30]
[378752621,1755003053213,-466.87,0.00041095,30]
[378752622,1755003053222,-400.0,0.00041095,30]
[378752623,1755003053231,-400.0,0.00041095,30]
[378752624,1755003053241,-400.0,0.00041095,30]
[378752625,1755003053252,-400.0,0.00041095,30]
[378752626,1755003053262,-400.0,0.00041095,30]
[378752627,1755003053271,-967.192467,0.00041095,30]
[378752628,1755003053281,-553.60960947,0.00041095,30]
[378752629,1755003053638,-413.58285753,0.00041095,30]
[378752630,1755003053649,-406.69,0.00041095,30]
[378752631,1755003053659,-967.192467,0.00041095,30]
[378752632,1755003053668,-494.37,0.00041095,30]
[378752633,1755003053677,-400.0,0.00041095,30]
[378752634,1755003053687,-400.0,0.00041095,30]
[378752635,1755003053696,-400.0,0.00041095,30]
[378752636,1755003053706,-601.38,0.00041095,30]
[378752637,1755003053716,-400.0,0.00041095,30]
[378752638,1755003053725,-72.42943776,0.00041095,30]
[378752639,1755003053757,-894.76302924,0.00041095,30]
[378752640,1755003053767,-710.1,0.00041095,30]
[378752641,1755003053776,-400.0,0.00041095,30]
[378752642,1755003053786,-295.13467109,0.00041095,30]
[378752643,1755003053806,-104.86532891,0.00041095,30]
[378752644,1755003053815,-967.192467,0.00041095,30]
[378752645,1755003053825,-118.26728947,0.00041095,30]
[378752646,1755003053874,-848.92517753,0.00041095,30]
[378752647,1755003053883,-400.0,0.00041095,30]
[378752648,1755003053893,-400.0,0.00041095,30]
[378752649,1755003053902,-400.0,0.00041095,30]
[378752650,1755003053911,-400.0,0.00041095,30]
[378752651,1755003053920,-400.0,0.00041095,30]
[378752652,1755003053930,-400.0,0.00041095,30]
[378752653,1755003053940,-400.0,0.00041095,30]
[378752654,1755003053949,-400.0,0.00041095,30]
[378752655,1755003053959,-400.0,0.00041095,30]
[378752656,1755003053968,-400.0,0.00041095,30]
[378752657,1755003053978,-400.0,0.00041095,30]
[378752658,1755003053987,-400.0,0.00041095,30]
[378752659,1755003053997,-400.0,0.00041095,30]
[378752660,1755003054008,-400.0,0.00041095,30]
[378752661,1755003054017,-400.0,0.00041095,30]
[378752662,1755003054138,-929.42,0.00041095,30]
[378752663,1755003054148,-400.0,0.00041095,30]
[378752664,1755003054158,-400.0,0.00041095,30]
[378752665,1755003054167,-400.0,0.00041095,30]
[378752666,1755003054177,-400.0,0.00041095,30]
[378752667,1755003054186,-400.0,0.00041095,30]
[378752668,1755003054195,-654.03,0.00041095,30]
[378752669,1755003054206,-400.0,0.00041095,30]
[378752670,1755003054215,-400.0,0.00041095,30]
[378752671,1755003054225,-400.0,0.00041095,30]
[378752672,1755003054235,-400.0,0.00041095,30]
[378752673,1755003054245,-400.0,0.00041095,30]
[378752674,1755003054256,-683.7,0.00041095,30]
[378752675,1755003054266,-226.30785218,0.00041095,30]
[378752676,1755003054474,-151.0,0.00041085,30]
[378752677,1755003054485,-500.89214782,0.00041095,30]
[378752678,1755003054494,-400.0,0.00041095,30]
[378752679,1755003054504,-1130.55,0.00041095,30]
[378752680,1755003054513,-361.16889685,0.00041095,30]
[378752681,1755003054524,-38.83110315,0.00041095,30]
[378752682,1755003054534,-400.0,0.00041095,30]
[378752683,1755003054544,-400.0,0.00041095,30]
[378752684,1755003054554,-46.12413685,0.00041095,30]
[378752685,1755003054566,-353.87586315,0.00041095,30]
[378752686,1755003054576,-400.0,0.00041095,30]
[378752687,1755003054586,-400.0,0.00041095,30]
[378752688,1755003054595,-400.0,0.00041095,30]
[378752689,1755003054607,-400.0,0.00041095,30]
[378752690,1755003054620,-151.469636,0.00041095,30]
[378752691,1755003054630,-693.76,0.00041095,30]
[378752692,1755003054639,-400.0,0.00041095,30]
[378752693,1755003054651,-2521.4,0.00041095,30]
[378752694,1755003054660,-765.99,0.00041095,30]
[378752695,1755003054670,-400.0,0.00041095,30]
[378752696,1755003054680,-400.0,0.00041095,30]
[378752697,1755003054690,-400.0,0.00041095,30]
[378752698,1755003054699,-408.27,0.00041095,30]
[378752699,1755003054709,-400.0,0.00041095,30]
[378752700,1755003054718,-321.73073313,0.00041095,30]
[378752701,1755003054735,-78.26926687,0.00041095,30]
[378752702,1755003054744,-184.27573313,0.00041095,30]
[378752703,1755003054757,-215.72426687,0.00041095,30]
[378752704,1755003054768,-597.51,0.00041095,30]
[378752705,1755003054778,-674.11,0.00041095,30]
[378752706,1755003054788,-597.51,0.00041095,30]
[378752707,1755003054798,-366.31067072,0.00041095,30]
[378752708,1755003054810,-231.19932928,0.00041095,30]
[378752709,1755003054820,-597.51,0.00041095,30]
[378752710,1755003054835,-460.0,0.00041095,30]
[378752711,1755003054852,-496.51905412,0.00041095,30]
[378752712,1755003054875,-100.99094588,0.00041095,30]
[378752713,1755003054894,-184.09705402,0.00041095,30]
[378752714,1755003054917,-215.90294598,0.00041095,30]
[378752715,1755003054935,-597.51,0.00041095,30]
[378752716,1755003054953,-597.51,0.00041095,30]
[378752717,1755003054974,-463.15,0.00041095,30]
[378752718,1755003054992,-400.0,0.00041095,30]
[378752719,1755003055016,-515.85,0.00041095,30]
[378752720,1755003055033,-400.0,0.00041095,30]
[378752721,1755003055051,-400.0,0.00041095,30]
[378752722,1755003055066,-400.0,0.00041095,30]
[378752723,1755003055082,-400.0,0.00041095,14]
[378752724,1755003055097,-400.0,0.00041095,30]
[378752725,1755003055113,-63.54743094,0.00041095,30]
[378752726,1755003055131,-336.45256906,0.00041095,30]
[378752727,1755003055147,-400.0,0.00041095,30]
[378752728,1755003055161,-400.0,0.00041095,30]
[378752729,1755003055178,-400.0,0.00041095,30]
[378752730,1755003055194,-726.38,0.00041095,30]
[378752731,1755003055209,-400.0,0.00041095,30]
[378752732,1755003055224,-400.0,0.00041095,30]
[378752733,1755003055239,-1713.36,0.00041095,30]
[378752734,1755003055256,-400.0,0.00041095,30]
[378752735,1755003055272,-401.77920204,0.00041095,30]
[378752736,1755003055288,-564.91,0.00041095,30]
[378752737,1755003055304,-1000.0,0.00041095,30]
[378752738,1755003055319,-461.85,0.00041095,30]
[378752739,1755003055334,-622.29,0.00041095,30]
[378752740,1755003055349,-576.83,0.00041095,30]
[378752741,1755003055364,-558.07,0.00041095,30]
[378752742,1755003055380,-400.0,0.00041095,30]
[378752743,1755003055395,-151.0,0.00041095,30]
[378752744,1755003055411,-151.0,0.00041095,30]
[378752745,1755003055426,-151.0,0.00041095,30]
[378752746,1755003055441,-400.0,0.00041095,30]
[378752747,1755003055456,-400.0,0.00041095,30]
[378752748,1755003055472,-400.0,0.00041095,30]
[378752749,1755003055486,-400.0,0.00041095,30]
[378752750,1755003055503,-400.0,0.00041095,30]
[378752751,1755003055515,-400.0,0.00041095,30]
[378752752,1755003055529,-292.3229489,0.00041095,30]
[378752753,1755003055548,-113.47372375,0.00041095,30]
[378752754,1755003055563,-756.4,0.00041095,30]
[378752755,1755003055578,-400.0,0.00041095,30]
[378752756,1755003055593,-400.0,0.00041095,30]
[378752757,1755003055609,-400.0,0.00041095,30]
[378752758,1755003055627,-400.0,0.00041095,30]
[378752759,1755003055643,-471.31,0.00041095,30]
[378752760,1755003055656,-400.0,0.00041095,30]
[378752761,1755003055666,-400.0,0.00041095,30]
[378752762,1755003055677,-400.0,0.00041095,30]
[378752763,1755003055687,-1807.39,0.00041095,30]
[378752764,1755003055697,-462.1,0.00041095,30]
[378752765,1755003055707,-1807.39,0.00041095,30]
[378752766,1755003055716,-1807.39,0.00041095,30]
[378752767,1755003055727,-1807.39,0.00041095,30]
[378752768,1755003055736,-400.0,0.00041095,30]
[378752769,1755003055745,-1807.39,0.00041095,30]
[378752770,1755003055757,-400.0,0.00041095,30]
[378752771,1755003055767,-1807.39,0.00041095,30]
[378752772,1755003055776,-417.43780871,0.00041095,30]
[378752773,1755003055786,-1807.39,0.00041095,30]
[378752774,1755003055795,-400.0,0.00041095,30]
[378752775,1755003055804,-1807.39,0.00041095,30]
[378752776,1755003056049,-1807.39,0.00041095,30]
[378752777,1755003056076,-1807.39,0.00041095,30]
[378752778,1755003056086,-400.0,0.00041095,30]
[378752779,1755003056096,-400.0,0.00041095,30]
[378752780,1755003056105,-555.74,0.00041095,30]
[378752781,1755003056114,-400.0,0.00041095,30]
[378752782,1755003056124,-400.0,0.00041095,30]
[378752783,1755003056134,-151.0,0.00041095,30]
[378752784,1755003056143,-151.0,0.00041095,30]
[378752785,1755003056152,-400.0,0.00041095,30]
[378752786,1755003056162,-151.0,0.00041095,30]
[378752787,1755003056172,-400.0,0.00041095,30]
[378752788,1755003056182,-400.0,0.00041095,30]
[378752789,1755003056192,-740.93,0.00041095,30]
[378752790,1755003056202,-400.0,0.00041095,30]
[378752791,1755003056212,-400.0,0.00041095,30]
[378752792,1755003056222,-400.0,0.00041095,30]
[378752793,1755003056232,-1894.03,0.00041095,30]
[378752794,1755003056242,-400.0,0.00041095,30]
[378752795,1755003056254,-400.0,0.00041095,30]
[378752796,1755003056264,-1894.03,0.00041095,30]
[378752797,1755003056274,-1894.03,0.00041095,30]
[378752798,1755003056284,-400.0,0.00041095,30]
[378752799,1755003056294,-1894.03,0.00041095,30]
[378752800,1755003056304,-1894.03,0.00041095,30]
[378752801,1755003056314,-1894.03,0.00041095,30]
[378752802,1755003056324,-440.15,0.00041095,30]
[378752803,1755003056333,-715.79267664,0.00041095,30]
[378752804,1755003056345,-706.56923157,0.00041095,30]
[378752805,1755003056356,-471.66809179,0.00041095,30]
[378752806,1755003056366,-400.0,0.00041095,30]
[378752807,1755003056375,-491.416779,0.00041095,30]
[378752808,1755003056384,-400.0,0.00041095,30]
[378752809,1755003056394,-400.0,0.00041095,30]
[378752810,1755003056403,-400.0,0.00041095,30]
[378752811,1755003056413,-400.0,0.00041095,30]
[378752812,1755003056422,-400.0,0.00041095,30]
[378752813,1755003056432,-413.22,0.00041095,30]
[378752814,1755003056441,-400.0,0.00041095,30]
[378752815,1755003056450,-400.0,0.00041095,30]
[378752816,1755003056459,-400.94649384,0.00041095,2]
[378752817,1755003056468,-400.0,0.00041095,30]
[378752818,1755003056478,-151.0,0.00041095,30]
[378752819,1755003056487,-151.0,0.00041095,30]
[378752820,1755003056496,-169.5494351,0.00041095,30]
[378752821,1755003056508,-377.604495,0.00041095,30]
[378752822,1755003056518,-500.0,0.00041096,10]
[378752823,1755003056527,-500.0,0.00041096,5]
[378752824,1755003056536,-1195.23,0.00041106,60]
[378752825,1755003056545,-1776.0,0.00041118,3]
[378752826,1755003056554,-611.56,0.00041136,2]
[378752827,1755003056563,-778.98728017,0.00041145,15]
[378752828,1755003056574,-324.8174251,0.00041146,2]
[378752829,1755003056586,-581.34790231,0.00041146,2]
[378752830,1755003056702,-151.784263,0.00041095,30]
[378752831,1755003056712,-93.83467259,0.00041146,2]
[378752832,1755003056722,-1000.0,0.00041146,2]
[378752833,1755003056732,-1000.0,0.00041146,2]
[378752834,1755003056741,-1000.0,0.00041146,2]
[378752835,1755003056753,-1000.0,0.00041146,2]
[378752836,1755003056763,-1000.0,0.00041146,2]
[378752837,1755003056773,-1000.0,0.00041146,2]
[378752838,1755003056783,-1000.0,0.00041146,2]
[378752839,1755003056793,-1000.0,0.00041146,2]
[378752840,1755003056802,-672.70831207,0.00041146,2]
[378752841,1755003056814,-327.29168793,0.00041146,2]
[378752842,1755003056824,-866.39091207,0.00041146,2]
[378752843,1755003057408,-400.67263446,0.00041094,3]
[378752844,1755003057419,-487.32736554,0.00041094,3]
[378752845,1755003057429,-888.0,0.00041094,3]
[378752846,1755003057438,-133.60908793,0.00041146,2]
[378752847,1755003057447,-1000.0,0.00041146,2]
[378752848,1755003057456,-1000.0,0.00041146,2]
[378752849,1755003057465,-1000.0,0.00041146,2]
[378752850,1755003057474,-1000.0,0.00041146,2]
[378752851,1755003057483,-1000.0,0.00041146,2]
[378752852,1755003057493,-1000.0,0.00041146,2]
[378752853,1755003057504,-1000.0,0.00041146,2]
[378752854,1755003057514,-1000.0,0.00041146,2]
[378752855,1755003057523,-1000.0,0.00041146,2]
[378752856,1755003057531,-1000.0,0.00041146,2]
[378752857,1755003057541,-1000.0,0.00041146,2]
[378752858,1755003057550,-1000.0,0.00041146,2]
[378752859,1755003057560,-1000.0,0.00041146,2]
[378752860,1755003057569,-1000.0,0.00041146,2]
[378752861,1755003057578,-1000.0,0.00041146,2]
[378752862,1755003057588,-1000.0,0.00041146,2]
[378752863,1755003057598,-1000.0,0.00041146,2]
[378752864,1755003057610,-1000.0,0.00041146,2]
[378752865,1755003057621,-1000.0,0.00041146,2]
[378752866,1755003057631,-1085.3187,0.00041146,2]
[378752867,1755003057640,-150.0,0.00041158,3]
[378752868,1755003057650,-500.0,0.00041266,2]
[378752869,1755003057659,-1071.3,0.00041266,30]
[378752870,1755003057668,-500.0,0.00041266,2]
[378752871,1755003057678,-500.0,0.00041266,2]
[378752872,1755003057688,-661.50954905,0.000413,30]
[378752873,1755003057697,-150.0,0.00041311,2]
[378752874,1755003057707,-500.0,0.00041321,10]
[378752875,1755003057716,-1000.0,0.00041321,10]
[378752876,1755003057725,-150.0,0.00041321,5]
[378752877,1755003057734,-150.0,0.00041321,5]
[378752878,1755003057743,-150.0,0.0004133,2]
[378752879,1755003057754,-150.0,0.00041332,2]
[378752880,1755003057763,-1909.96434154,0.00041336,14]